Cogmind - Beta 15 @@@ ROGUE MODE // 2025.09.19 @ 20:17:29 Player: beans Result: Destroyed by DAS Turret with DAS Cannon Performance ------------- Evolutions (0) 0 Regions Visited (3) 600 Robots Destroyed (9) 45 Value Destroyed (46) 46 Prototype IDs (23) 460 Alien Tech Used (0) 0 Bonus (300) 300 TOTAL SCORE: 1451 Bonus ------- Aligned with FarCom 300 Cogmind --------- Core Integrity 0/250 Matter 300/300 Energy 98/100 System Corruption 0% Temperature Cool (0) Movement Core (50) Location -10/Exiles Parts ------- > --- POWER (1) -------- (None) > --- PROPULSION (2) --- (None) > --- UTILITY (2) ------ (None) > --- WEAPON (2) ------- (None) > --- INVENTORY (5) ---- Beam Cannon Light Assault Rifle Grenade Launcher Field Lobotomy Kit (3) Peak State ------------ > --- POWER ------------ Light Ion Engine > --- PROPULSION ------- Aluminum Leg Aluminum Leg > --- UTILITY ---------- (None) > --- WEAPON ----------- Assault Rifle Field Lobotomy Kit > --- INVENTORY -------- Beam Cannon Light Assault Rifle Grenade Launcher [Rating: 14] Favorites ----------- Power Light Ion Engine Engine Light Ion Engine Propulsion Aluminum Leg Leg Aluminum Leg Utility None Weapon Assault Rifle Ballistic Gun Assault Rifle Launcher Grenade Launcher Special Weapon Field Lobotomy Kit Build | -11 -10 -10 -10 ------- Run | Yrd Mat Min Exi Slots Evolved . | . . . . Power . | . . . . Propulsion . | . . . . Utility . | . . . . Weapon . | . . . . Parts Attached 7 | 5 . 1 1 Power 1 | 1 . . . Engine 1 | 1 . . . Core . | . . . . Reactor . | . . . . Propulsion 2 | 2 . . . Treads . | . . . . Leg 2 | 2 . . . Wheel . | . . . . Hover . | . . . . Flight . | . . . . Utility . | . . . . Device . | . . . . Storage . | . . . . Processor . | . . . . Hackware . | . . . . Protection . | . . . . Artifact . | . . . . Weapon 4 | 2 . 1 1 Energy Gun . | . . . . Energy Cannon . | . . . . Ballistic Gun 2 | 2 . . . Ballistic Cannon . | . . . . Launcher 1 | . . 1 . Special Weapon 1 | . . . 1 Impact Weapon . | . . . . Slashing Weapon . | . . . . Piercing Weapon . | . . . . Special Melee Weapon . | . . . . Unidentified Prototypes . | . . . . Parts Lost 4 | . . . 4 Power 1 | . . . 1 Propulsion 2 | . . . 2 Utility . | . . . . Weapon 1 | . . . 1 Highest Loss Streak 4 | . . . 4 To Critical Strikes . | . . . . Average Backups 1 | . . 1 2 Power . | . . . . Propulsion . | . . . . Utility . | . . . . Weapon 1 | . . 1 2 Tool/Special . | . . . . Unused Backups 1 | . . . 1 Power . | . . . . Propulsion . | . . . . Utility . | . . . . Weapon 1 | . . . 1 Tool/Special . | . . . . Average Slot Usage (%) 69 | . 71 71 68 Engine 13 | . 14 14 13 Leg 27 | . 28 28 26 Ballistic Gun 16 | . 28 18 14 Launcher 9 | . . 9 10 Special Weapon 1 | . . . 3 Peak Build Rating 14 | 5 5 5 14 Average Rating 5 | 3 5 5 6 On Entrance 3 | . 5 5 5 Naked Turns 4 | . . . 4 Heaviest Build 13 | 6 6 8 13 Greatest Support 20 | 20 20 20 20 Greatest Overweight (x) . | . . . . Average Overweight (x) . | . . . . Largest Inventory Capacity 5 | 5 5 5 5 Average Capacity 5 | 5 5 5 5 Most Carried 4 | 3 1 2 4 Average Carried 1 | . . 1 2 Final Capacity 5 | 5 5 5 5 Final Carried 4 | . 1 2 4 Class Distribution -------------------- 100% | Mutant Dominant Class ---------------- Mutant | -10/Materials Mutant | -10/Mines Mutant | -10/Exiles Resources | -11 -10 -10 -10 ----------- Run | Yrd Mat Min Exi Matter Collected 410 | 241 . 169 . Remotely . | . . . . Salvage Created 142 | . . 142 . Parts 15 | . . 15 . Haulers Intercepted . | . . . . Recyclers Shooed 2 | . . 2 . Parts Field Recycled . | . . . . Retrieved Matter . | . . . . Parts Self-Destructed . | . . . . Prevented . | . . . . Kills | -11 -10 -10 -10 ------- Run | Yrd Mat Min Exi Combat Hostiles Destroyed 3 | . . 3 . AOE 3 | . . 3 . Classes Destroyed 4 | . . 4 . Worker 4 | . . 4 . Builder 1 | . . 1 . Tunneler 1 | . . 1 . Swarmer 3 | . . 3 . Best Kill Streak 4 | . . 4 . Combat Bots Only 3 | . . 3 . Max Kills in Single Turn 2 | . . 2 . Gunslinging . | . . . . Exploded 2 | . . 2 . Melee . | . . . . Uniques/NPCs Destroyed . | . . . . Combat | -11 -10 -10 -10 -------- Run | Yrd Mat Min Exi Hostile Shots Fired 50 | . . 4 46 Missed 14 | . . 1 13 Hits 36 | . . 3 33 Melee 2 | . . . 2 Projectile 34 | . . 3 31 Critical Strikes 3 | . . . 3 Damage Taken 688 | . . 54 634 Core 284 | . . 20 264 Absorbed by Shields . | . . . . Core Remaining (%) 100 | 100 . . . Volleys Fired 17 | . . 15 2 Largest 2 | . . 2 1 Hottest 50 | . . 50 . Shots Fired 32 | . . 30 2 Gun 20 | . . 20 . Cannon . | . . . . Launcher 10 | . . 10 . Special 2 | . . . 2 Kinetic 20 | . . 20 . Thermal . | . . . . Explosive 10 | . . 10 . Electromagnetic . | . . . . Robot Hit Streak 3 | . . 3 1 Robot Miss Streak 3 | . . 3 2 Penetration Max . | . . . . Secondary Targets . | . . . . Shots Hit Robots 6 | . . 5 1 Core Hits 12 | . . 12 . Critical Kills . | . . . . Critical Parts Destroyed . | . . . . Critical Strikes . | . . . . Melee Attacks . | . . . . Impact . | . . . . Slashing . | . . . . Piercing . | . . . . Sneak Attacks . | . . . . Combat Hostiles . | . . . . Follow-up Attacks . | . . . . Damage Inflicted 380 | . . 380 . Guns 102 | . . 102 . Cannons . | . . . . Explosions 278 | . . 278 . Melee . | . . . . Ramming . | . . . . Kinetic 102 | . . 102 . Thermal . | . . . . Explosive 278 | . . 278 . Electromagnetic . | . . . . Impact . | . . . . Slashing . | . . . . Piercing . | . . . . Highest Corruption . | . . . . Average Corruption . | . . . . Corruption Purged . | . . . . Corruption Blocked . | . . . . Overload Shots . | . . . . Overflow Damage . | . . . . Projectiles . | . . . . Explosions . | . . . . Melee . | . . . . Knockbacks . | . . . . Impact . | . . . . Kinetic . | . . . . Secondary . | . . . . Self-Inflicted Damage 35 | . . 35 . Shots 2 | . . 2 . Rammed . | . . . . Targets Rammed . | . . . . Kicked . | . . . . Crushed . | . . . . Highest Temperature . | . . . . Average Temperature . | . . . . Received Heat Transfer . | . . . . Siege Activations . | . . . . Martial Activations . | . . . . Shielding Activations . | . . . . Robots Disrupted . | . . . . Combat Hostiles . | . . . . Robots Corrupted . | . . . . Combat Hostiles . | . . . . Parts Fried . | . . . . Impact Corruptions . | . . . . Robots Melted . | . . . . Combat Hostiles . | . . . . Parts Melted . | . . . . Heat Transferred . | . . . . Parts Sabotaged . | . . . . Parts Stolen . | . . . . Parts Stripped . | . . . . Power Chain Reactions . | . . . . Alert | -11 -10 -10 -10 ------- Run | Yrd Mat Min Exi Maximum Alert Level . | . . . . Low Security (%) 100 | 100 100 100 . Level 1 . | . . . . Level 2 . | . . . . Level 3 . | . . . . Level 4 . | . . . . Level 5 . | . . . . High Security . | . . . . Max Security . | . . . . Peak Influence 122 | . . 122 . Initial . | . . . . Average 32 | . . 43 . Influence Increases 177 | . . 177 . Destroy 0b10 Robot/C 60 | . . 60 . Destroy 0b10 Robot/NC 30 | . . 30 . Destroy Leader 10 | . . 10 . Destroy Structure 77 | . . 77 . Influence Decreases 177 | . . 75 102 Entered New Map 102 | . . . 102 Time Decay 75 | . . 75 . Squads Dispatched . | . . . . Investigation . | . . . . Extermination . | . . . . Reinforcement . | . . . . Assault . | . . . . Garrison . | . . . . Intercept . | . . . . Searches Triggered . | . . . . Construction Impeded . | . . . . Haulers Reinforced . | . . . . Active Scanning Responses . | . . . . Cargo Convoy Interrupts . | . . . . Stealth | -11 -10 -10 -10 --------- Run | Yrd Mat Min Exi Distress Signals . | . . . . Communications Jammed . | . . . . Distress Signals . | . . . . Times Spotted 12 | . . 3 9 Peak Tracking Total 11 | . . 1 11 Tactical Retreats . | . . . . Traps | -11 -10 -10 -10 ------- Run | Yrd Mat Min Exi Traps Triggered . | . . . . Indirectly . | . . . . Trap Hack Attempts . | . . . . Triggered . | . . . . Disarmed . | . . . . Reprogrammed . | . . . . Reused . | . . . . Traps Extracted . | . . . . Installed . | . . . . Triggered . | . . . . Machines | -11 -10 -10 -10 ---------- Run | Yrd Mat Min Exi Machines Disabled . | . . . . Max in Single Turn . | . . . . Machines Repaired . | . . . . Machines Dismantled . | . . . . Machines Sabotaged . | . . . . Overloaded Fab Kills . | . . . . Hacking | -11 -10 -10 -10 --------- Run | Yrd Mat Min Exi Machines Accessed 1 | . . . 1 Terminals . | . . . . Fabricators . | . . . . Repair Stations . | . . . . Recycling Units . | . . . . Scanalyzers . | . . . . Garrison Access . | . . . . Total Hacks 1 | . . . 1 Successful 1 | . . . 1 Failed . | . . . . Catastrophic . | . . . . Database Lockouts . | . . . . Manual 1 | . . . 1 Terminals . | . . . . Fabricators . | . . . . Repair Stations . | . . . . Recycling Units . | . . . . Scanalyzers . | . . . . Garrison Access . | . . . . Terminal Hacks 1 | . . . 1 Proto ID Catalog 1 | . . . 1 Fabricator Hacks . | . . . . Repair Station Hacks . | . . . . Recycling Unit Hacks . | . . . . Scanalyzer . | . . . . Garrison Access Hacks . | . . . . Unauthorized Hacks . | . . . . Terminals . | . . . . Fabricators . | . . . . Repair Stations . | . . . . Recycling Units . | . . . . Scanalyzers . | . . . . Garrison Access . | . . . . Data Cores Recovered . | . . . . Used . | . . . . Hacking Detections . | . . . . Full Trace Events . | . . . . Feedback Events . | . . . . Feedback Blocked . | . . . . Robot Schematics Acquired . | . . . . Robots Built . | . . . . Authchips . | . . . . Time . | . . . . Total Robot Build Rating . | . . . . Part Schematics Acquired . | . . . . Parts Built . | . . . . Authchips . | . . . . Time . | . . . . Total Part Build Rating . | . . . . Parts Repaired . | . . . . Time . | . . . . Parts Recycled . | . . . . Recycled Matter . | . . . . Retrieved Matter . | . . . . Retrieved Components . | . . . . Parts Scanalyzed . | . . . . Part Schematics Acquired . | . . . . Parts Damaged . | . . . . Bothacking | -11 -10 -10 -10 ------------ Run | Yrd Mat Min Exi Used RIF Installer . | . . . . Robots Hacked . | . . . . Non-combat . | . . . . Combat . | . . . . Robot Hacks Applied . | . . . . Relay Couplers Released . | . . . . Fabnet Peak Effective % . | . . . . Robots Rewired . | . . . . Allies Hacked . | . . . . Hacks Repelled . | . . . . Allies | -11 -10 -10 -10 -------- Run | Yrd Mat Min Exi Total Allies . | . . . . Largest Group . | . . . . Highest-Rated Group . | . . . . Highest-Rated Ally . | . . . . Total Orders . | . . . . Ally Attacks . | . . . . Total Damage . | . . . . Kills . | . . . . Allies Corrupted . | . . . . Allies Melted . | . . . . Intel | -11 -10 -10 -10 ------- Run | Yrd Mat Min Exi Active Infowar (turns) . | . . . . Robot Analysis Total . | . . . . Derelict Logs Recovered 1 | . . 1 . Drone Launches . | . . . . Drone Recoveries . | . . . . Exploration | -11 -10 -10 -10 ------------- Run | Yrd Mat Min Exi Turns Passed 478 | 44 21 189 224 Spaces Moved 369 | 38 17 119 195 Core 43 | 16 . . 27 Treads . | . . . . Legs 326 | 22 17 119 168 Wheels . | . . . . Hover . | . . . . Flight . | . . . . Fastest Speed 50 | 50 120 120 50 Average Speed 111 | 90 120 120 110 Slowest Speed 120 | 120 120 120 120 Overloaded Moves . | . . . . Propulsion Burnouts . | . . . . Robots Hopped . | . . . . Potential Cave-ins . | . . . . Cave-ins Triggered . | . . . . Exploration Rate (%) 22 | 3 6 30 51 Regions Visited 3 Branch Regions 2 Pre-discovered Areas . | . . . . Known Exits Taken . | . . . . Unknown Exits Taken 3 | 1 1 1 . Scrap Searched 1 | . . 1 . Spaces Dug 16 | . . 16 . Terrain Destroyed 97 | . . 97 . Melee . | . . . . Projectile . | . . . . AOE 97 | . . 97 . Terrain Rammed . | . . . . Walls Destroyed . | . . . . Machines Disabled . | . . . . Actions | -11 -10 -10 -10 --------- Run | Yrd Mat Min Exi Total 399 | 47 17 135 200 Wait . | . . . . Move 366 | 37 16 118 195 Hop . | . . . . Pick Up 8 | 5 1 1 1 Fast Attach . | . . . . Attach 5 | 5 . . . Detach 1 | . . . 1 Swap 2 | . . 1 1 Drop . | . . . . Fire 17 | . . 15 2 Melee . | . . . . Ram . | . . . . Kick . | . . . . Crush . | . . . . Escape Stasis . | . . . . Rewire . | . . . . Trap . | . . . . Miscellaneous . | . . . . Route ------- -11/Scrapyard -10/Materials -10/Mines (discovered 2 exits: [*Mat] / *Exi) -10/Exiles History --------- Turn | Location | Event 11 | -11/Scrapyard | Discovered new exit (range 15) 45 | -11/Scrapyard | Entered Materials 45 | -10/Materials | Discovered new exit (range 11) 66 | -10/Materials | Entered Mines 90 | -10/Mines | Discovered new exit (range 8) 244 | -10/Mines | Learned Materials garrison access intel 250 | -10/Mines | Deemed a non-threat by the Exiles lab entrance 250 | -10/Mines | Discovered new exit (range 5) 255 | -10/Mines | Entered Exiles 288 | -10/Exiles | Met 8R-AWN 302 | -10/Exiles | Build established: Mutant 305 | -10/Exiles | Met EX-HEX 343 | -10/Exiles | Met EX-BIN 357 | -10/Exiles | Aligned with FarCom system 359 | -10/Exiles | Given EX-Vault access code 387 | -10/Exiles | Opened EX-Vault 396 | -10/Exiles | Found Field Lobotomy Kit 422 | -10/Exiles | Warned to stay clear of 0b10 Research branches 439 | -10/Exiles | Exiles lab attacked by MAIN.C 458 | -10/Exiles | Attacked by the Exiles 466 | -10/Exiles | Core integrity fell below 50% 476 | -10/Exiles | Core integrity fell below 20% 479 | -10/Exiles | Destroyed by DAS Turret with DAS Cannon Last Messages --------------- Assembled Analyzer disabled. 8R-AWN unaffected by assimilation attempt. Penetrated by HV Slug. Lgt. Ion Engine destroyed. Penetrated by HV Slug. Knocked back. Aluminum Leg destroyed. Penetrated by HV Slug. Aluminum Leg destroyed. EX-BIN: "I just want to science!" HV Slug penetrates Machine. Machine disabled. HV Slug penetrates Machine. Machine disabled. Penetrated by HV Slug. EX-BIN seems to be suffering from a case of analysis paralysis. EXILES: Lab perimeter alert, evacuate immediately. Assault Rifle destroyed. Map ----- +----------------------------------------------------+ | ?????????????????????????????##"###??# #?#"""" | | ?????????????????????????????? ??????# #?#"""" | | ?????????????????????????????????????# #?#"""" | | ????????????????????????????????????## ###"" " | | ????????????????????????????????????#" " | | ????????????????????????????????????#" | | ????????????????????????????????????#" | | ????????????????????????????????????#" | | ????????????????????????????????????#" | | ????????????????????????????????????#" | | ???????????????????????? "??????????## | | ???????????????????????? ???????????# | | ???????????????????????" ???????????#" "X" | | ???????????????????????" ???????????#" """ | | ??????????????????????? ???????????#" """""" | | ???????????????????????" ??????????##" ####### | | ???????????????????????# ?????????##"" #?????? | | ??????????????##?????### ###?######"" #?????? | | ???????????? """#####X# #"###""""""" ##????? | | ???????????? """""" " "" ##???# | | ???????????? "" """ " ##### | | ??????????? " " | | ??????????? | | ????????????# % | | ?????????????# | | ??????????????# @ % | | ???????????????#" a a | | ???????????????#""" %""""" | | ???????????????#" ######"" | | ???????????????"" ""##????#####"" | | ???????????????""" """##?????????##""" | | ????????????????" """##???????????#"""" | | ???????????????"" ""#????????????#"" | | ???????????????" ##????????????"""" | | ???????????????"" ????????????" | | ???????????????"t ??????????" | | ???????????????"" ??????????? | | ????????????????""" ?????????? | | ?????????????????? ?????????? | | ??????????????????? c ?????????? "" | | ?????????????????????? ??????????##""" " " | | ???????????????????????? ???????????????###""" | | ??????????????????????????????????????????????###" | | ????????????????????????????????????????????????## | | ?????????????????????????????????????????????????? | | ?????????????????????????????????????????????????? | | ?????????????????????????????????????????????????? | | ?????????????????????????????????????????????????? | | ?????????????????????????????????????????????????? | | ?????????????????????????????????????????????????? | +----------------------------------------------------+ Best States ------------- Heat Dissipation 25 Energy Generation 10 Energy Capacity 125 Matter Stores 300 Matter Capacity 300 Sight Range 16 Terrain Scan Density 10 Evasion (%) 55 Item Schematics ----------------- None Robot Schematics ------------------ None Fabricated ------------ Nothing Repaired ---------- Nothing Alien Tech Used ----------------- None Achievements -------------- None Challenges ------------ None Game ------ Seed CentriumMetafieldInsulator Manual? 0 Play Time 00:03:47 Cumulative 145.3 hours Start 2025.09.19 @ 20:14:56 End 2025.09.19 @ 20:17:29 Sessions 1 Manual Loads 0 Difficulty Rogue Special Mode None Game No. 482 Rogue 482 Adventurer 0 Explorer 0 Win Type - Total 0 Types 0/0/0/0/0/0/0/0/0/0 Lore% 53 Gallery% 50 Achievement% 39 Wizard Run 0 Options --------- Layout 1 ASCII 0 Keyboard 0 Movement Mouse Keybinds 0 Fullscreen 2 Font 24/Smallcaps Map View 50x35 Zoom Use 0% Tactical HUD 0 Map Filters NONE Filters NONE Steam 1 RUN: cce0cce2-4d6d-40b0-a32e-5c5cb1584441